lending/lending_fUSD_20250121
["ID","MTS","AMOUNT","RATE_DAILY","PERIOD"]
[349886826,1737478242423,-6298.61409303,0.00019336,2]
[349886827,1737478242431,-500.0,0.00019351,2]
[349886828,1737478242441,-62424.2669,0.00019352,2]
[349886829,1737478242452,-399.35,0.0001942,2]
[349886830,1737478242461,-500.0,0.0001945,2]
[349886831,1737478242470,-500.0,0.0001945,2]
[349886832,1737478242480,-500.0,0.00019451,2]
[349886833,1737478242491,-503.57443901,0.00019451,2]
[349886834,1737478242501,-500.0,0.00019451,2]
[349886835,1737478242511,-500.0,0.00019451,2]
[349886836,1737478242520,-500.0,0.00019451,2]
[349886837,1737478242530,-503.52920443,0.00019451,2]
[349886838,1737478242539,-500.0,0.00019451,2]
[349886839,1737478242549,-500.0,0.00019451,2]
[349886840,1737478242558,-326.52925612,0.00019451,2]
[349886841,1737478242571,-500.0,0.00019451,2]
[349886842,1737478242581,-500.0,0.00019451,2]
[349886843,1737478242590,-500.0,0.00019451,2]
[349886844,1737478242599,-508.92334491,0.00019451,2]
[349886845,1737478242609,-1037.71,0.00019451,2]
[349886846,1737478242619,-4446.72,0.00019451,2]
[349886847,1737478242628,-686.09,0.00019451,2]
[349886848,1737478242637,-619.35,0.00019451,2]
[349886849,1737478242647,-500.0,0.00019451,2]
[349886850,1737478242657,-736.13,0.00019451,2]
[349886852,1737478242666,-500.0,0.00019451,2]
[349886853,1737478242676,-576.84,0.00019451,2]
[349886855,1737478242685,-748.56,0.00019451,2]
[349886856,1737478242695,-935.13,0.00019451,2]
[349886857,1737478242705,-916.83,0.00019451,2]
[349886858,1737478242716,-705.22,0.00019451,2]
[349886859,1737478242725,-1338.11,0.00019451,2]
[349886860,1737478242734,-3146.11,0.00019451,2]
[349886861,1737478242743,-358.57218891,0.00019451,2]
[349886863,1737478242753,-500.0,0.00019451,2]
[349886865,1737478242762,-755.16,0.00019451,2]
[349886867,1737478242772,-544.01,0.00019451,2]
[349886869,1737478242782,-1561.89,0.00019451,2]
[349886871,1737478242791,-500.0,0.00019451,2]
[349886873,1737478242802,-627.29,0.00019451,2]
[349886875,1737478242812,-1038.48,0.00019451,2]
[349886877,1737478242821,-1045.81,0.00019451,2]
[349886878,1737478242830,-500.0,0.00019451,2]
[349886879,1737478242840,-1000.0,0.00019451,2]
[349886880,1737478242850,-1022.32,0.00019451,2]
[349886881,1737478242860,-500.0,0.00019451,2]
[349886882,1737478242870,-251.09268828,0.00019452,2]
[349886883,1737478242879,-500.0,0.00019452,2]
[349886884,1737478242889,-500.0,0.00019452,2]
[349886885,1737478242899,-609.68,0.00019452,2]
[349886886,1737478242909,-500.0,0.00019452,2]
[349886887,1737478242918,-500.0,0.00019452,2]
[349886888,1737478242928,-500.0,0.00019452,2]
[349886889,1737478242938,-530.04009133,0.00019452,2]
[349886890,1737478242947,-500.0,0.00019452,2]
[349886891,1737478242959,-500.0,0.00019452,2]
[349886892,1737478242969,-500.0,0.00019452,2]
[349886893,1737478242979,-500.0,0.00019452,2]
[349886894,1737478242989,-500.0,0.00019452,2]
[349886895,1737478242998,-500.0,0.00019452,2]
[349886896,1737478243009,-540.48331934,0.00019452,2]
[349886897,1737478243019,-500.0,0.00019452,2]
[349886898,1737478243028,-500.0,0.00019452,2]
[349886899,1737478243038,-500.0,0.00019452,2]
[349886900,1737478243048,-217.49763853,0.00019452,2]
[349886901,1737478243057,-500.0,0.00019452,2]
[349886902,1737478243067,-500.0,0.00019452,2]
[349886903,1737478243077,-500.0,0.00019452,2]
[349886904,1737478243086,-500.0,0.00019452,2]
[349886905,1737478243096,-500.0,0.00019452,2]
[349886906,1737478243106,-500.0,0.00019452,2]
[349886907,1737478243115,-500.0,0.00019452,2]
[349886908,1737478243125,-523.54495523,0.00019452,2]
[349886909,1737478243135,-500.0,0.00019452,2]
[349886910,1737478243145,-500.0,0.00019452,2]
[349886911,1737478243155,-500.0,0.00019452,2]
[349886912,1737478243164,-500.0,0.00019452,2]
[349886913,1737478243174,-500.0,0.00019452,2]
[349886914,1737478243183,-506.60787056,0.00019452,2]
[349886915,1737478243192,-500.0,0.00019452,2]
[349886916,1737478243201,-500.0,0.00019452,2]
[349886917,1737478243215,-500.0,0.00019452,2]
[349886918,1737478243225,-500.0,0.00019452,2]
[349886919,1737478243234,-332.86049537,0.00019452,2]
[349886920,1737478243244,-500.0,0.00019452,2]
[349886922,1737478243254,-500.0,0.00019452,2]
[349886923,1737478243263,-500.0,0.00019452,2]
[349886924,1737478243272,-500.0,0.00019452,2]
[349886925,1737478243282,-500.0,0.00019452,2]
[349886926,1737478243291,-500.0,0.00019452,2]
[349886927,1737478243300,-502.35504515,0.00019452,2]
[349886928,1737478243310,-500.0,0.00019452,2]
[349886929,1737478243319,-500.0,0.00019452,2]
[349886930,1737478243329,-500.0,0.00019452,2]
[349886931,1737478243338,-500.0,0.00019452,2]
[349886932,1737478243347,-500.0,0.00019452,2]
[349886933,1737478243357,-500.0,0.00019452,2]
[349886934,1737478243367,-515.18541379,0.00019452,2]
[349886935,1737478243376,-580.38,0.00019452,2]
[349886936,1737478243386,-500.0,0.00019452,2]
[349886937,1737478243395,-500.0,0.00019452,2]
[349886938,1737478243405,-500.0,0.00019452,2]
[349886939,1737478243414,-500.0,0.00019452,2]
[349886940,1737478243424,-500.0,0.00019452,2]
[349886941,1737478243434,-500.0,0.00019452,2]
[349886942,1737478243444,-500.0,0.00019452,2]
[349886943,1737478243456,-468.71514508,0.00019452,2]
[349886944,1737478243466,-558.48635577,0.00019452,2]
[349886945,1737478243476,-500.0,0.00019452,2]
[349886946,1737478243487,-521.18014264,0.00019452,2]
[349886947,1737478243499,-426.15055854,0.00019452,2]
[349886948,1737478243509,-500.0,0.00019452,2]
[349886949,1737478243519,-500.0,0.00019452,2]
[349886950,1737478243530,-500.0,0.00019452,2]
[349886951,1737478243539,-500.0,0.00019452,2]
[349886952,1737478243549,-500.0,0.00019452,2]
[349886953,1737478243558,-500.0,0.00019452,2]
[349886954,1737478243570,-500.0,0.00019452,2]
[349886955,1737478243580,-500.0,0.00019452,2]
[349886956,1737478243590,-500.0,0.00019452,2]
[349886957,1737478243599,-500.0,0.00019452,2]
[349886958,1737478243609,-520.61,0.00019452,2]
[349886959,1737478243618,-500.0,0.00019452,2]
[349886960,1737478243628,-512.52384005,0.00019452,2]
[349886961,1737478243637,-500.0,0.00019452,2]
[349886962,1737478243647,-600.8,0.00019452,2]
[349886963,1737478243656,-500.0,0.00019452,2]
[349886964,1737478243665,-500.0,0.00019452,2]
[349886965,1737478243675,-500.0,0.00019452,2]
[349886966,1737478243685,-500.0,0.00019452,2]
[349886967,1737478243694,-500.0,0.00019452,2]
[349886968,1737478243704,-500.0,0.00019452,2]
[349886969,1737478243714,-500.0,0.00019452,2]
[349886970,1737478243723,-1391.04,0.00019452,2]
[349886971,1737478243732,-500.0,0.00019452,2]
[349886972,1737478243741,-500.0,0.00019452,2]
[349886973,1737478243751,-500.0,0.00019452,2]
[349886974,1737478243760,-500.0,0.00019452,2]
[349886975,1737478243770,-619.45,0.00019452,2]
[349886976,1737478243779,-500.0,0.00019452,2]
[349886977,1737478243789,-500.0,0.00019452,2]
[349886978,1737478243798,-767.8,0.00019452,2]
[349886979,1737478243807,-500.0,0.00019452,2]
[349886980,1737478243816,-500.0,0.00019452,2]
[349886981,1737478243825,-500.0,0.00019452,2]
[349886982,1737478243835,-500.0,0.00019452,2]
[349886983,1737478243843,-500.0,0.00019452,2]
[349886984,1737478243853,-500.0,0.00019452,2]
[349886985,1737478243863,-500.0,0.00019452,2]
[349886986,1737478243872,-500.0,0.00019452,2]
[349886987,1737478243881,-500.0,0.00019452,2]
[349886988,1737478243891,-628.07,0.00019452,2]
[349886989,1737478243900,-500.0,0.00019452,2]
[349886990,1737478243909,-541.15,0.00019452,2]
[349886991,1737478243918,-500.0,0.00019452,2]
[349886992,1737478243927,-500.0,0.00019452,2]
[349886993,1737478243936,-500.0,0.00019452,2]
[349886994,1737478243946,-500.0,0.00019452,2]
[349886995,1737478243956,-500.0,0.00019452,2]
[349886996,1737478243966,-713.97,0.00019452,2]
[349886997,1737478243975,-578.13,0.00019452,2]
[349886998,1737478243985,-420.68778178,0.00019452,2]
[349886999,1737478243995,-500.0,0.00019452,2]
[349887000,1737478244004,-500.0,0.00019452,2]
[349887001,1737478244014,-538.16,0.00019452,2]
[349887002,1737478244024,-576.69,0.00019452,2]
[349887003,1737478244033,-500.0,0.00019452,2]
[349887004,1737478244043,-500.0,0.00019452,2]
[349887005,1737478244053,-500.0,0.00019452,2]
[349887006,1737478244062,-500.0,0.00019452,2]
[349887007,1737478244072,-500.0,0.00019452,2]
[349887008,1737478244081,-500.0,0.00019452,2]
[349887009,1737478244091,-500.0,0.00019452,2]
[349887010,1737478244100,-500.0,0.00019452,2]
[349887011,1737478244109,-500.0,0.00019452,2]
[349887012,1737478244118,-500.0,0.00019452,2]
[349887013,1737478244128,-336.81214281,0.00019452,2]
[349887014,1737478244137,-500.0,0.00019452,2]
[349887015,1737478244147,-500.0,0.00019452,2]
[349887016,1737478244156,-500.0,0.00019452,2]
[349887017,1737478244166,-41.37259513,0.00019452,2]
[349887018,1737478244187,-458.62740487,0.00019452,2]
[349887019,1737478244196,-500.0,0.00019452,2]
[349887020,1737478244205,-500.0,0.00019452,2]
[349887021,1737478244215,-500.0,0.00019452,2]
[349887022,1737478244225,-500.0,0.00019452,2]
[349887023,1737478244234,-500.0,0.00019452,2]
[349887024,1737478244244,-500.0,0.00019452,2]
[349887025,1737478244254,-500.0,0.00019452,2]
[349887026,1737478244264,-500.0,0.00019452,2]
[349887027,1737478244273,-500.0,0.00019452,2]
[349887028,1737478244282,-500.0,0.00019452,2]
[349887029,1737478244291,-500.0,0.00019452,2]
[349887030,1737478244300,-500.0,0.00019452,2]
[349887031,1737478244309,-500.0,0.00019452,2]
[349887032,1737478244319,-500.0,0.00019452,2]
[349887033,1737478244328,-500.0,0.00019452,2]
[349887034,1737478244337,-500.0,0.00019452,2]
[349887035,1737478244346,-571.09782189,0.00019452,2]
[349887036,1737478244356,-500.0,0.00019452,2]
[349887037,1737478244365,-500.0,0.00019452,2]
[349887038,1737478244375,-500.0,0.00019452,2]
[349887039,1737478244384,-500.0,0.00019452,2]
[349887040,1737478244393,-500.0,0.00019452,2]
[349887041,1737478244403,-500.0,0.00019452,2]
[349887042,1737478244412,-509.41,0.00019452,2]
[349887043,1737478244421,-500.0,0.00019452,2]
[349887044,1737478244431,-500.0,0.00019452,2]
[349887045,1737478244440,-482.38837324,0.00019452,2]
[349887046,1737478244454,-17.61162676,0.00019452,2]
[349887047,1737478244463,-500.0,0.00019452,2]
[349887048,1737478244472,-500.0,0.00019452,2]
[349887049,1737478244482,-500.0,0.00019452,2]
[349887050,1737478244494,-500.0,0.00019452,2]
[349887051,1737478244504,-500.0,0.00019452,2]
[349887052,1737478244513,-500.0,0.00019452,2]
[349887053,1737478244656,-500.0,0.00019452,2]
[349887054,1737478244666,-500.0,0.00019452,2]
[349887055,1737478244676,-500.0,0.00019452,2]
[349887056,1737478244685,-500.0,0.00019452,2]
[349887057,1737478244694,-580.323488,0.00019452,2]
[349887058,1737478244706,-500.0,0.00019452,2]
[349887059,1737478244715,-500.0,0.00019452,2]
[349887060,1737478244725,-500.0,0.00019452,2]
[349887061,1737478244735,-500.0,0.00019452,2]
[349887062,1737478244744,-500.0,0.00019452,2]
[349887063,1737478244754,-500.0,0.00019452,2]
[349887064,1737478244764,-500.0,0.00019452,2]
[349887065,1737478244773,-500.0,0.00019452,2]
[349887066,1737478244783,-500.0,0.00019452,2]
[349887067,1737478244792,-500.0,0.00019452,7]
[349887068,1737478244802,-636.1982872,0.00019452,2]
[349887069,1737478244811,-500.0,0.00019452,2]
[349887070,1737478244820,-500.0,0.00019452,2]
[349887071,1737478244830,-500.0,0.00019452,2]
[349887072,1737478244839,-500.0,0.00019452,2]
[349887073,1737478244850,-500.0,0.00019452,2]
[349887074,1737478244860,-500.0,0.00019452,2]
[349887075,1737478244869,-686.831651,0.00019452,2]
[349887076,1737478244879,-500.0,0.00019452,2]
[349887077,1737478244888,-500.0,0.00019452,2]
[349887078,1737478244897,-500.0,0.00019452,2]
[349887079,1737478244907,-500.0,0.00019452,2]
[349887080,1737478244916,-500.0,0.00019452,2]
[349887081,1737478244925,-500.0,0.00019452,2]
[349887082,1737478244935,-500.0,0.00019452,2]
[349887083,1737478244944,-500.0,0.00019452,2]
[349887084,1737478244955,-500.0,0.00019452,2]
[349887085,1737478244964,-500.0,0.00019452,2]
[349887086,1737478244974,-500.0,0.00019452,2]
[349887087,1737478244983,-231.41998512,0.00019452,2]
[349887088,1737478244997,-268.58001488,0.00019452,2]
[349887089,1737478245007,-500.0,0.00019452,2]
[349887090,1737478245017,-175.21739862,0.00019452,2]
[349887094,1737478245981,-324.78260138,0.00019452,2]
[349887095,1737478245991,-565.47,0.00019452,2]
[349887096,1737478246000,-500.0,0.00019452,2]
[349887097,1737478246011,-500.0,0.00019452,2]
[349887098,1737478246020,-500.0,0.00019452,2]
[349887099,1737478246031,-500.0,0.00019452,2]
[349887100,1737478246040,-500.0,0.00019452,2]
[349887101,1737478246050,-500.0,0.00019452,2]
[349887102,1737478246059,-500.0,0.00019452,2]
[349887103,1737478246068,-500.0,0.00019452,2]
[349887104,1737478246078,-500.0,0.00019452,2]
[349887105,1737478246087,-500.0,0.00019452,2]
[349887106,1737478246096,-500.0,0.00019452,2]
[349887107,1737478246106,-500.0,0.00019452,2]
[349887108,1737478246115,-500.0,0.00019452,2]
[349887109,1737478246124,-503.32567197,0.00019452,2]
[349887110,1737478246134,-500.0,0.00019452,2]
[349887111,1737478246144,-500.0,0.00019452,2]
[349887112,1737478246153,-500.0,0.00019452,2]
[349887113,1737478246163,-500.0,0.00019452,2]
[349887114,1737478246173,-309.22195714,0.00019452,2]
[349887115,1737478246183,-500.0,0.00019452,2]
[349887116,1737478246194,-500.0,0.00019452,2]
[349887117,1737478246203,-500.0,0.00019452,2]
[349887118,1737478246213,-500.0,0.00019452,2]
[349887119,1737478246224,-500.0,0.00019452,2]
[349887120,1737478246234,-500.0,0.00019452,2]
[349887121,1737478246243,-500.0,0.00019452,2]
[349887122,1737478246253,-515.03,0.00019452,2]
[349887123,1737478246262,-500.0,0.00019452,2]
[349887124,1737478246271,-581.69,0.00019452,2]
[349887125,1737478246281,-188.75308243,0.00019452,2]
[349887126,1737478246290,-650.55,0.00019452,2]
[349887127,1737478246300,-500.0,0.00019452,2]
[349887128,1737478246311,-534.46,0.00019452,2]
[349887129,1737478246321,-500.0,0.00019452,2]
[349887130,1737478246331,-500.0,0.00019452,2]
[349887131,1737478246340,-238.18283241,0.00019452,2]
[349887132,1737478246351,-500.0,0.00019452,2]
[349887133,1737478246361,-500.0,0.00019452,2]
[349887134,1737478246371,-500.0,0.00019452,2]
[349887135,1737478246380,-500.0,0.00019452,2]
[349887136,1737478246390,-500.0,0.00019452,2]
[349887137,1737478246399,-500.0,0.00019452,2]
[349887138,1737478246409,-500.0,0.00019452,2]
[349887139,1737478246419,-500.0,0.00019452,2]
[349887140,1737478246428,-424.87142593,0.00019452,2]
[349887141,1737478246438,-500.0,0.00019452,2]
[349887142,1737478246447,-500.0,0.00019452,2]
[349887143,1737478246459,-500.0,0.00019452,2]
[349887144,1737478246469,-500.0,0.00019452,2]
[349887145,1737478246478,-500.0,0.00019452,2]
[349887146,1737478246490,-500.0,0.00019452,2]
[349887147,1737478246500,-500.0,0.00019452,2]
[349887148,1737478246509,-500.0,0.00019452,2]
[349887149,1737478246518,-500.0,0.00019452,2]
[349887150,1737478246529,-500.0,0.00019452,2]
[349887151,1737478246539,-500.0,0.00019452,2]
[349887152,1737478246548,-500.0,0.00019452,2]
[349887153,1737478246557,-500.0,0.00019452,2]
[349887154,1737478246566,-500.0,0.00019452,2]
[349887155,1737478246576,-500.0,0.00019452,2]
[349887156,1737478246586,-500.0,0.00019452,2]
[349887157,1737478246596,-300.0,0.00019452,2]
[349887158,1737478246606,-500.0,0.00019452,2]
[349887159,1737478246615,-500.0,0.00019452,2]
[349887160,1737478246625,-500.0,0.00019452,2]
[349887161,1737478246635,-500.0,0.00019452,2]
[349887162,1737478246644,-500.0,0.00019452,2]
[349887163,1737478246653,-500.0,0.00019452,2]
[349887164,1737478246664,-500.0,0.00019452,2]
[349887166,1737478246673,-500.0,0.00019452,2]
[349887167,1737478246683,-500.0,0.00019452,2]
[349887168,1737478246692,-500.0,0.00019452,2]
[349887169,1737478246701,-500.0,0.00019452,2]
[349887170,1737478246712,-500.0,0.00019452,2]
[349887171,1737478246721,-179.92879675,0.00019452,2]
[349887172,1737478246730,-500.0,0.00019452,2]
[349887173,1737478246740,-500.0,0.00019452,2]
[349887174,1737478246750,-627.352816,0.00019452,2]
[349887175,1737478246759,-500.0,0.00019452,2]
[349887176,1737478246768,-500.0,0.00019452,2]
[349887177,1737478246777,-500.0,0.00019452,2]
[349887178,1737478246787,-500.0,0.00019452,2]
[349887179,1737478246796,-510.96571648,0.00019452,2]
[349887180,1737478246806,-500.0,0.00019452,2]
[349887181,1737478246815,-500.0,0.00019452,2]
[349887182,1737478246824,-500.0,0.00019452,2]
[349887183,1737478246833,-500.0,0.00019452,2]
[349887184,1737478246842,-500.0,0.00019452,2]
[349887185,1737478246852,-500.0,0.00019452,2]
[349887186,1737478246861,-502.93,0.00019452,2]
[349887187,1737478246870,-500.0,0.00019452,2]
[349887188,1737478246879,-500.0,0.00019452,2]
[349887189,1737478246889,-500.0,0.00019452,2]
[349887190,1737478246898,-500.0,0.00019452,2]
[349887191,1737478246907,-500.0,0.00019452,2]
[349887192,1737478246916,-500.0,0.00019452,2]
[349887193,1737478246925,-544.69,0.00019452,2]
[349887194,1737478246934,-500.0,0.00019452,2]
[349887195,1737478246943,-513.58730241,0.00019452,2]
[349887196,1737478246953,-500.0,0.00019452,2]
[349887197,1737478246963,-500.0,0.00019452,2]
[349887198,1737478246972,-500.0,0.00019452,2]
[349887199,1737478246982,-500.0,0.00019452,2]
[349887200,1737478246991,-500.0,0.00019452,2]
[349887201,1737478247136,-543.89326692,0.00019452,2]
[349887202,1737478247146,-506.19796777,0.00019452,2]
[349887203,1737478247155,-500.0,0.00019452,2]
[349887204,1737478247165,-616.54564475,0.00019452,2]
[349887205,1737478247175,-500.0,0.00019452,2]
[349887206,1737478247184,-500.0,0.00019452,2]
[349887207,1737478247193,-500.0,0.00019452,2]
[349887208,1737478247203,-500.0,0.00019452,2]
[349887209,1737478247214,-500.0,0.00019452,2]
[349887210,1737478247223,-500.0,0.00019452,2]
[349887211,1737478247233,-500.0,0.00019452,2]
[349887212,1737478247242,-500.0,0.00019452,2]
[349887213,1737478247251,-500.0,0.00019452,2]
[349887214,1737478247260,-500.0,0.00019452,2]
[349887215,1737478247269,-500.0,0.00019452,2]
[349887216,1737478247279,-500.0,0.00019452,2]
[349887217,1737478247288,-500.0,0.00019452,2]
[349887218,1737478247297,-500.0,0.00019452,2]
[349887219,1737478247306,-272.093583,0.00019452,2]
[349887220,1737478247316,-500.0,0.00019452,2]
[349887221,1737478247325,-500.0,0.00019452,2]
[349887222,1737478247335,-500.0,0.00019452,2]
[349887223,1737478247345,-500.0,0.00019452,2]
[349887224,1737478247355,-969.01,0.00019452,2]
[349887225,1737478247364,-1077.8,0.00019452,2]
[349887226,1737478247373,-1124.19,0.00019452,2]
[349887227,1737478247382,-500.0,0.00019452,2]
[349887228,1737478247392,-500.0,0.00019452,2]
[349887229,1737478247401,-500.0,0.00019452,2]
[349887230,1737478247411,-500.0,0.00019452,2]
[349887231,1737478247420,-591.516622,0.00019452,2]
[349887232,1737478247429,-500.0,0.00019452,2]
[349887233,1737478247439,-500.0,0.00019452,2]
[349887234,1737478247448,-500.0,0.00019452,2]
[349887235,1737478247457,-2226.55,0.00019452,2]
[349887236,1737478247467,-500.0,0.00019452,2]
[349887237,1737478247476,-500.0,0.00019452,2]
[349887238,1737478247486,-500.0,0.00019452,2]
[349887239,1737478247499,-500.0,0.00019452,2]
[349887240,1737478247509,-1144.85,0.00019452,2]
[349887241,1737478247518,-500.0,0.00019452,2]
[349887242,1737478247527,-500.0,0.00019452,2]
[349887243,1737478247537,-500.0,0.00019452,2]
[349887244,1737478247547,-1125.89861747,0.00019452,2]
[349887245,1737478247569,-65.71138253,0.00019452,2]
[349887246,1737478247578,-471.22476168,0.00019452,2]
[349887247,1737478247590,-28.77523832,0.00019452,2]
[349887248,1737478247599,-419.72474168,0.00019452,2]
[349887249,1737478247614,-52.39076915,0.00019452,2]
[349887250,1737478247623,-500.0,0.00019452,2]
[349887251,1737478247633,-515.18,0.00019452,2]
[349887252,1737478247642,-1110.01,0.00019452,2]
[349887253,1737478247652,-211.83435501,0.00019452,2]
[349887254,1737478247662,-505.81086046,0.00019452,2]
[349887255,1737478247671,-500.0,0.00019452,2]
[349887256,1737478247680,-500.0,0.00019452,2]
[349887257,1737478247689,-324.94102197,0.00019452,2]
[349887258,1737478247699,-500.0,0.00019452,2]
[349887259,1737478247710,-500.0,0.00019452,2]
[349887260,1737478247719,-500.0,0.00019452,2]
[349887261,1737478247729,-516.04565291,0.00019452,2]
[349887262,1737478247738,-123.85977634,0.00019452,2]
[349887263,1737478247750,-376.14022366,0.00019452,2]
[349887264,1737478247759,-547.42817742,0.00019452,2]
[349887265,1737478247768,-208.2955315,0.00019452,2]
[349887266,1737478247791,-291.7044685,0.00019452,2]
[349887267,1737478247801,-500.0,0.00019452,2]
[349887268,1737478247811,-2345.93,0.00019452,2]
[349887269,1737478247820,-500.0,0.00019452,2]
[349887270,1737478247830,-500.0,0.00019452,2]
[349887271,1737478247839,-500.0,0.00019452,2]
[349887272,1737478247848,-2452.7,0.00019452,2]
[349887273,1737478247858,-500.0,0.00019452,2]
[349887274,1737478247867,-500.0,0.00019452,2]
[349887275,1737478247876,-1030.87,0.00019452,2]
[349887276,1737478247885,-500.0,0.00019452,2]
[349887277,1737478247894,-1080.6,0.00019452,2]
[349887278,1737478247903,-500.0,0.00019452,2]
[349887279,1737478247913,-787.1,0.00019452,2]
[349887280,1737478247922,-713.9,0.00019452,2]
[349887281,1737478247932,-500.0,0.00019452,2]
[349887282,1737478247942,-500.0,0.00019452,2]
[349887283,1737478247951,-500.0,0.00019452,2]
[349887284,1737478247963,-1473.02,0.00019452,2]
[349887285,1737478247972,-500.0,0.00019452,2]
[349887286,1737478247982,-500.0,0.00019452,2]
[349887287,1737478247993,-1024.19,0.00019452,2]
[349887288,1737478248002,-500.0,0.00019452,2]
[349887289,1737478248013,-1299.56,0.00019452,2]
[349887290,1737478248024,-500.0,0.00019452,2]
[349887291,1737478248034,-734.55,0.00019452,2]
[349887292,1737478248044,-500.0,0.00019452,2]
[349887293,1737478248060,-492.51043245,0.00019452,2]
[349887294,1737478248072,-500.0,0.00019452,2]
[349887295,1737478248089,-500.0,0.00019452,2]
[349887296,1737478248104,-259.13604859,0.00019452,2]
[349887297,1737478248114,-200.0,0.00019452,2]
[349887298,1737478248124,-500.0,0.00019452,2]
[349887299,1737478248134,-500.0,0.00019452,2]
[349887300,1737478248144,-500.0,0.00019452,2]
[349887301,1737478248154,-500.0,0.00019452,2]
[349887302,1737478248163,-500.0,0.00019452,2]
[349887303,1737478248173,-506.5,0.00019452,2]
[349887304,1737478248183,-500.0,0.00019452,2]
[349887305,1737478248192,-381.09173129,0.00019452,2]
[349887306,1737478248203,-500.0,0.00019452,2]
[349887307,1737478248217,-500.0,0.00019452,2]
[349887308,1737478248228,-1880.54,0.00019452,2]
[349887309,1737478248237,-705.85,0.00019452,2]
[349887310,1737478248247,-500.0,0.00019452,2]
[349887311,1737478248256,-500.0,0.00019452,2]
[349887312,1737478248266,-1136.57,0.00019452,2]
[349887313,1737478248276,-870.69,0.00019452,2]
[349887314,1737478248285,-500.0,0.00019452,2]
[349887315,1737478248300,-500.0,0.00019452,2]
[349887316,1737478248317,-500.0,0.00019452,2]
[349887317,1737478248330,-500.0,0.00019452,2]
[349887318,1737478248345,-500.0,0.00019452,2]
[349887319,1737478248360,-500.0,0.00019452,2]
[349887320,1737478248377,-1146.26,0.00019452,2]
[349887321,1737478248391,-500.0,0.00019452,2]
[349887322,1737478248403,-3406.82,0.00019452,2]
[349887323,1737478248417,-500.0,0.00019452,2]
[349887324,1737478248433,-500.0,0.00019452,2]
[349887325,1737478248448,-500.0,0.00019452,2]
[349887326,1737478248464,-500.0,0.00019452,2]
[349887327,1737478248478,-512.56859004,0.00019452,2]
[349887328,1737478248497,-729.52,0.00019452,2]
[349887329,1737478248510,-2015.76,0.00019452,2]
[349887330,1737478248524,-2454.24,0.00019452,2]
[349887331,1737478248540,-500.0,0.00019452,2]
[349887332,1737478248557,-500.0,0.00019452,2]
[349887333,1737478248570,-1713.76,0.00019452,2]
[349887334,1737478248583,-500.0,0.00019452,2]
[349887335,1737478248599,-500.0,0.00019452,2]
[349887336,1737478248612,-879.19,0.00019452,2]
[349887337,1737478248627,-527.03441208,0.00019452,2]
[349887338,1737478248640,-279.39187718,0.00019452,2]
[349887339,1737478248656,-2157.1,0.00019452,2]
[349887340,1737478248668,-633.84442698,0.00019452,2]